[Event "*** SCC Grand Prix: Titled Tuesday Blitz"]
[Site "Chess.com"]
[Date "2020.07.07"]
[Round "6"]
[White "Gabrielian_Artur"]
[Black "swisspower96"]
[Result "1-0"]
[WhiteElo "2770"]
[BlackElo "2625"]
[TimeControl "180+1"]
[EndTime "11:07:32 PDT"]
[Termination "Gabrielian_Artur won by resignation"]

1. e4 {[%clk 0:03:00.9]} 1... c5 {[%clk 0:02:59.9]} 2. Nc3 {[%clk 0:03:00.6]}
2... Nc6 {[%clk 0:02:59.8]} 3. Bb5 {[%clk 0:03:00.2]} 3... Nd4 {[%clk
0:02:57.9]} 4. Bc4 {[%clk 0:03:00]} 4... a6 {[%clk 0:02:57.2]} 5. Nce2 {[%clk
0:02:59.4]} 5... b5 {[%clk 0:02:11]} 6. Bxf7+ {[%clk 0:02:58.3]} 6... Kxf7
{[%clk 0:02:06.5]} 7. Nxd4 {[%clk 0:02:58.5]} 7... Nf6 {[%clk 0:02:00.9]} 8.
Ndf3 {[%clk 0:02:57.8]} 8... d6 {[%clk 0:01:56.4]} 9. d3 {[%clk 0:02:40.6]} 9...
g6 {[%clk 0:01:53.4]} 10. Ne2 {[%clk 0:02:29.4]} 10... Bg7 {[%clk 0:01:53.3]}
11. Ng5+ {[%clk 0:02:25.7]} 11... Kg8 {[%clk 0:01:49.3]} 12. c3 {[%clk
0:02:23.1]} 12... e6 {[%clk 0:01:43.4]} 13. f4 {[%clk 0:02:19.1]} 13... Ra7
{[%clk 0:01:25.3]} 14. O-O {[%clk 0:02:18.5]} 14... Re7 {[%clk 0:01:25.3]} 15.
a4 {[%clk 0:02:18.1]} 15... h6 {[%clk 0:01:22.6]} 16. Nf3 {[%clk 0:02:17.7]}
16... Kh7 {[%clk 0:01:23.1]} 17. axb5 {[%clk 0:02:17.4]} 17... axb5 {[%clk
0:01:23.1]} 18. Ra8 {[%clk 0:02:14.6]} 18... Qb6 {[%clk 0:01:19.6]} 19. Kh1
{[%clk 0:02:14.4]} 19... Qb7 {[%clk 0:01:16.2]} 20. Ra1 {[%clk 0:02:13.4]} 20...
Rf8 {[%clk 0:01:14]} 21. Ng3 {[%clk 0:02:12.2]} 21... c4 {[%clk 0:01:07.8]} 22.
h3 {[%clk 0:02:07.1]} 22... Bd7 {[%clk 0:00:51.5]} 23. Be3 {[%clk 0:02:04.6]}
23... Bc6 {[%clk 0:00:49.9]} 24. Ra7 {[%clk 0:02:03.7]} 24... Qxa7 {[%clk
0:00:45.7]} 25. Bxa7 {[%clk 0:02:03.7]} 25... Rxa7 {[%clk 0:00:45.8]} 26. dxc4
{[%clk 0:02:02.1]} 26... bxc4 {[%clk 0:00:45.6]} 27. Nd4 {[%clk 0:02:02]} 27...
Bd7 {[%clk 0:00:42.3]} 28. Qe2 {[%clk 0:01:59.9]} 28... Rc7 {[%clk 0:00:39.7]}
29. e5 {[%clk 0:01:42.9]} 29... dxe5 {[%clk 0:00:39.1]} 30. fxe5 {[%clk
0:01:43]} 30... Nd5 {[%clk 0:00:39.3]} 31. Rxf8 {[%clk 0:01:42]} 31... Bxf8
{[%clk 0:00:40.2]} 32. Ne4 {[%clk 0:01:42.1]} 32... Bg7 {[%clk 0:00:39.6]} 33.
Nd6 {[%clk 0:01:37.3]} 33... Nf4 {[%clk 0:00:28.3]} 34. Qe3 {[%clk 0:01:18.9]}
34... Nd5 {[%clk 0:00:28.6]} 35. Qg3 {[%clk 0:01:15.3]} 35... g5 {[%clk
0:00:23.7]} 36. Ne4 {[%clk 0:01:10.7]} 36... Nf4 {[%clk 0:00:23.1]} 37. Nf6+
{[%clk 0:01:08.9]} 37... Bxf6 {[%clk 0:00:22.6]} 38. exf6 {[%clk 0:01:09.4]}
38... Kg6 {[%clk 0:00:20.8]} 39. Qe3 {[%clk 0:00:59.7]} 39... Kxf6 {[%clk
0:00:20]} 40. Nf3 {[%clk 0:01:00]} 40... Rb7 {[%clk 0:00:15.8]} 41. Qe5+ {[%clk
0:00:59.1]} 41... Kf7 {[%clk 0:00:15.7]} 42. Qh8 {[%clk 0:00:58.2]} 42... Ke7
{[%clk 0:00:15]} 43. Qxh6 {[%clk 0:00:55.4]} 43... Nd3 {[%clk 0:00:14.8]} 44.
Qxg5+ {[%clk 0:00:53.3]} 44... Kd6 {[%clk 0:00:15.3]} 45. Qa5 {[%clk 0:00:45.2]}
45... Rxb2 {[%clk 0:00:11.7]} 46. Qa3+ {[%clk 0:00:44.3]} 46... Kd5 {[%clk
0:00:07.9]} 47. Qa8+ {[%clk 0:00:40.3]} 47... Bc6 {[%clk 0:00:07.3]} 48. Qd8+
{[%clk 0:00:39.3]} 48... Kc5 {[%clk 0:00:07.9]} 49. Qf8+ {[%clk 0:00:35]} 49...
Kb5 {[%clk 0:00:07.4]} 50. Nd4+ {[%clk 0:00:35.1]} 50... Kb6 {[%clk 0:00:04.6]}
51. Qd8+ {[%clk 0:00:35.1]} 51... Kb7 {[%clk 0:00:04.3]} 52. Qe7+ {[%clk
0:00:33]} 52... Kb6 {[%clk 0:00:04.3]} 53. Nxc6 {[%clk 0:00:32.7]} 53... Kxc6
{[%clk 0:00:04.8]} 54. Qxe6+ {[%clk 0:00:33]} 54... Kc5 {[%clk 0:00:05.3]} 55.
Qf5+ {[%clk 0:00:30.9]} 55... Kc6 {[%clk 0:00:05.5]} 56. Qf6+ {[%clk 0:00:30.2]}
56... Kc5 {[%clk 0:00:05.9]} 57. Qd4+ {[%clk 0:00:30.2]} 57... Kb5 {[%clk
0:00:06]} 58. Qd5+ {[%clk 0:00:29.7]} 58... Nc5 {[%clk 0:00:06.7]} 59. h4 {[%clk
0:00:29.4]} 59... Rc2 {[%clk 0:00:06.4]} 60. Qe5 {[%clk 0:00:28.6]} 60... Kc6
{[%clk 0:00:04.3]} 61. Qf6+ {[%clk 0:00:27.6]} 61... Kb5 {[%clk 0:00:04.6]} 62.
h5 {[%clk 0:00:27]} 62... Rc1+ {[%clk 0:00:04.9]} 63. Kh2 {[%clk 0:00:26.8]}
63... Na4 {[%clk 0:00:02.7]} 64. Qe5+ {[%clk 0:00:24.8]} 64... Kc6 {[%clk
0:00:02]} 65. Qf6+ {[%clk 0:00:24.9]} 65... Kb5 {[%clk 0:00:02.4]} 66. Qg5+
{[%clk 0:00:25.2]} 66... Nc5 {[%clk 0:00:02.7]} 67. Qxc1 {[%clk 0:00:25.8]} 1-0

[Event "*** SCC Grand Prix: Titled Tuesday Blitz"]
[Site "Chess.com"]
[Date "2020.07.07"]
[Round "6"]
[White "GMKrikor"]
[Black "RodinMihail"]
[Result "1-0"]
[WhiteElo "2686"]
[BlackElo "2485"]
[TimeControl "180+1"]
[EndTime "11:07:32 PDT"]
[Termination "GMKrikor won by resignation"]

1. e4 {[%clk 0:03:00.9]} 1... e5 {[%clk 0:02:59.9]} 2. Bc4 {[%clk 0:02:59.4]}
2... Nc6 {[%clk 0:02:59.9]} 3. Nc3 {[%clk 0:02:59.2]} 3... Nf6 {[%clk
0:02:58.7]} 4. d3 {[%clk 0:02:59]} 4... Bc5 {[%clk 0:02:59.2]} 5. f4 {[%clk
0:02:58.1]} 5... d6 {[%clk 0:02:59.8]} 6. Nf3 {[%clk 0:02:56.6]} 6... Na5 {[%clk
0:03:00.4]} 7. Bb3 {[%clk 0:02:35.6]} 7... c6 {[%clk 0:02:58.4]} 8. fxe5 {[%clk
0:02:24.7]} 8... dxe5 {[%clk 0:02:58.1]} 9. Qe2 {[%clk 0:02:15.8]} 9... Nxb3
{[%clk 0:02:56.8]} 10. axb3 {[%clk 0:02:15.4]} 10... Qe7 {[%clk 0:02:54.7]} 11.
Be3 {[%clk 0:02:13.6]} 11... Ng4 {[%clk 0:02:50.9]} 12. Bxc5 {[%clk 0:02:12.5]}
12... Qxc5 {[%clk 0:02:51]} 13. h3 {[%clk 0:02:09.6]} 13... Nf6 {[%clk
0:02:44.8]} 14. Qf2 {[%clk 0:02:01.3]} 14... Qxf2+ {[%clk 0:02:37.4]} 15. Kxf2
{[%clk 0:02:02.2]} 15... Nd7 {[%clk 0:02:36.8]} 16. b4 {[%clk 0:02:02.6]} 16...
O-O {[%clk 0:02:32.1]} 17. b5 {[%clk 0:01:56.4]} 17... cxb5 {[%clk 0:02:29.1]}
18. Nxb5 {[%clk 0:01:53.2]} 18... a6 {[%clk 0:02:29.5]} 19. Nd6 {[%clk
0:01:29.5]} 19... f6 {[%clk 0:02:28.1]} 20. b4 {[%clk 0:01:28.5]} 20... Rd8
{[%clk 0:02:26.2]} 21. Nc4 {[%clk 0:01:10.2]} 21... Nf8 {[%clk 0:02:22.6]} 22.
Nb6 {[%clk 0:01:05.8]} 22... Rb8 {[%clk 0:02:22.2]} 23. b5 {[%clk 0:01:05]}
23... axb5 {[%clk 0:02:21.4]} 24. Rhb1 {[%clk 0:01:04.7]} 24... Bd7 {[%clk
0:02:10.4]} 25. Nxd7 {[%clk 0:00:59.8]} 25... Rxd7 {[%clk 0:02:11.3]} 26. Rxb5
{[%clk 0:01:00]} 26... Rc8 {[%clk 0:02:11.9]} 27. Ra2 {[%clk 0:00:58.5]} 27...
Ne6 {[%clk 0:02:11.6]} 28. Ke3 {[%clk 0:00:54.5]} 28... Nf4 {[%clk 0:02:06.4]}
29. Ne1 {[%clk 0:00:54.4]} 29... Ne6 {[%clk 0:02:00.1]} 30. Rab2 {[%clk
0:00:50.2]} 30... Rcc7 {[%clk 0:01:57.5]} 31. Nf3 {[%clk 0:00:46.8]} 31... Nf4
{[%clk 0:01:57.1]} 32. Ne1 {[%clk 0:00:46.9]} 32... Ne6 {[%clk 0:01:57.1]} 33.
Rd5 {[%clk 0:00:41.2]} 33... Nd4 {[%clk 0:01:48]} 34. Rxd7 {[%clk 0:00:33.9]}
34... Rxd7 {[%clk 0:01:48.9]} 35. c3 {[%clk 0:00:34.5]} 35... Ne6 {[%clk
0:01:48.7]} 36. Nf3 {[%clk 0:00:33.1]} 36... Rc7 {[%clk 0:01:44.9]} 37. Rb3
{[%clk 0:00:29]} 37... Nc5 {[%clk 0:01:41.4]} 38. Ra3 {[%clk 0:00:26.1]} 38...
Re7 {[%clk 0:01:32.7]} 39. g4 {[%clk 0:00:24.1]} 39... g6 {[%clk 0:01:31.3]} 40.
h4 {[%clk 0:00:24.1]} 40... Kf7 {[%clk 0:01:31.4]} 41. Ra5 {[%clk 0:00:22.2]}
41... b6 {[%clk 0:01:30.4]} 42. Rb5 {[%clk 0:00:21.6]} 42... Re6 {[%clk
0:01:25.8]} 43. Rb1 {[%clk 0:00:21.7]} 43... Ke7 {[%clk 0:01:22.6]} 44. Ra1
{[%clk 0:00:21.7]} 44... Rc6 {[%clk 0:01:01.8]} 45. Ra7+ {[%clk 0:00:17.3]}
45... Nd7 {[%clk 0:01:01.7]} 46. Kd2 {[%clk 0:00:14.3]} 46... Kd6 {[%clk
0:00:57.3]} 47. g5 {[%clk 0:00:13.3]} 47... f5 {[%clk 0:00:53.6]} 48. exf5
{[%clk 0:00:09.6]} 48... gxf5 {[%clk 0:00:54.5]} 49. h5 {[%clk 0:00:09.2]} 49...
Ke6 {[%clk 0:00:50.3]} 50. g6 {[%clk 0:00:08.1]} 50... hxg6 {[%clk 0:00:51.2]}
51. h6 {[%clk 0:00:07.1]} 51... Rc8 {[%clk 0:00:51.1]} 52. Ng5+ {[%clk
0:00:07.1]} 52... Kd6 {[%clk 0:00:50.5]} 53. h7 {[%clk 0:00:05.7]} 53... Ke7
{[%clk 0:00:40.9]} 54. d4 {[%clk 0:00:04]} 54... exd4 {[%clk 0:00:40.3]} 55.
cxd4 {[%clk 0:00:04.9]} 55... Rh8 {[%clk 0:00:40.4]} 56. d5 {[%clk 0:00:03.7]}
56... Kf6 {[%clk 0:00:37.2]} 57. Ne6 {[%clk 0:00:02.8]} 57... Ne5 {[%clk
0:00:36.1]} 58. Rb7 {[%clk 0:00:01.8]} 58... Nf7 {[%clk 0:00:34.6]} 59. Rxb6
{[%clk 0:00:01.7]} 59... Rxh7 {[%clk 0:00:33.7]} 60. Nf8+ {[%clk 0:00:01.7]}
60... Kg7 {[%clk 0:00:30.6]} 61. Nxh7 {[%clk 0:00:02.4]} 61... Kxh7 {[%clk
0:00:31.5]} 62. d6 {[%clk 0:00:03.2]} 62... Kg8 {[%clk 0:00:29.8]} 63. d7 {[%clk
0:00:03.8]} 63... Kf8 {[%clk 0:00:30.1]} 64. Re6 {[%clk 0:00:04.4]} 64... g5
{[%clk 0:00:27.5]} 65. Re8+ {[%clk 0:00:04.3]} 65... Kg7 {[%clk 0:00:28.1]} 66.
Re7 {[%clk 0:00:05.2]} 66... Kf6 {[%clk 0:00:25.7]} 67. Rxf7+ {[%clk 0:00:06.1]}
67... Ke6 {[%clk 0:00:26.4]} 68. d8=Q {[%clk 0:00:05.9]} 1-0

[Event "*** SCC Grand Prix: Titled Tuesday Blitz"]
[Site "Chess.com"]
[Date "2020.07.07"]
[Round "6"]
[White "Irishchessman16"]
[Black "sm_sharon"]
[Result "1-0"]
[WhiteElo "2417"]
[BlackElo "2170"]
[TimeControl "180+1"]
[EndTime "11:07:35 PDT"]
[Termination "Irishchessman16 won by resignation"]

1. e4 {[%clk 0:03:00.9]} 1... g6 {[%clk 0:03:00.9]} 2. h4 {[%clk 0:02:59]} 2...
d6 {[%clk 0:03:01.8]} 3. h5 {[%clk 0:02:59.2]} 3... c5 {[%clk 0:02:55.3]} 4.
hxg6 {[%clk 0:02:57.4]} 4... fxg6 {[%clk 0:02:55.9]} 5. Bc4 {[%clk 0:02:56.4]}
5... e6 {[%clk 0:02:52]} 6. d3 {[%clk 0:02:52.2]} 6... Bg7 {[%clk 0:02:51.1]} 7.
Nf3 {[%clk 0:02:49.1]} 7... Nc6 {[%clk 0:02:51]} 8. Ng5 {[%clk 0:02:47.8]} 8...
Qe7 {[%clk 0:02:49.5]} 9. Nc3 {[%clk 0:02:24]} 9... Bd7 {[%clk 0:02:44.8]} 10.
Qg4 {[%clk 0:02:07.8]} 10... Nf6 {[%clk 0:02:43.9]} 11. Qh3 {[%clk 0:02:04.9]}
11... d5 {[%clk 0:02:31.3]} 12. Bb5 {[%clk 0:02:01]} 12... a6 {[%clk 0:02:29.7]}
13. Bxc6 {[%clk 0:02:00.3]} 13... bxc6 {[%clk 0:02:29.7]} 14. e5 {[%clk
0:01:52]} 14... Ng8 {[%clk 0:02:23.4]} 15. f4 {[%clk 0:01:51.2]} 15... Nh6
{[%clk 0:02:20]} 16. Nf3 {[%clk 0:01:46.4]} 16... Nf5 {[%clk 0:02:16.6]} 17. Ne2
{[%clk 0:01:40.6]} 17... h5 {[%clk 0:02:03]} 18. Bd2 {[%clk 0:01:32.8]} 18...
Rb8 {[%clk 0:02:02.3]} 19. O-O-O {[%clk 0:01:32.2]} 19... Qd8 {[%clk 0:01:49]}
20. g4 {[%clk 0:01:30.6]} 20... hxg4 {[%clk 0:01:47.5]} 21. Qxg4 {[%clk
0:01:30.4]} 21... Kf7 {[%clk 0:01:38.2]} 22. Ng5+ {[%clk 0:01:27.4]} 22... Ke7
{[%clk 0:01:35.3]} 23. Nf3 {[%clk 0:01:09.9]} 23... Kf7 {[%clk 0:01:33]} 24.
Rdg1 {[%clk 0:01:07.8]} 24... Ne7 {[%clk 0:01:23.6]} 25. Ng5+ {[%clk 0:01:05.9]}
25... Kg8 {[%clk 0:01:23.4]} 26. Nxe6 {[%clk 0:00:58.6]} 26... Qc8 {[%clk
0:01:20.4]} 27. Rxh8+ {[%clk 0:00:56.9]} 27... Bxh8 {[%clk 0:01:20.3]} 28. f5
{[%clk 0:00:57]} 28... Bxe6 {[%clk 0:01:15.1]} 29. fxe6 {[%clk 0:00:56.1]} 29...
Bxe5 {[%clk 0:01:13.4]} 30. c3 {[%clk 0:00:47.2]} 30... Qf8 {[%clk 0:01:00.4]}
31. Nf4 {[%clk 0:00:45.4]} 31... Qg7 {[%clk 0:00:53.3]} 32. Nxg6 {[%clk
0:00:42.1]} 32... Nxg6 {[%clk 0:00:52.2]} 33. Qxg6 {[%clk 0:00:41.7]} 33... Qxg6
{[%clk 0:00:52.4]} 34. Rxg6+ {[%clk 0:00:42.1]} 34... Kf8 {[%clk 0:00:51.4]} 35.
e7+ {[%clk 0:00:38.3]} 35... Kxe7 {[%clk 0:00:50.4]} 36. Rxc6 {[%clk 0:00:38.9]}
36... a5 {[%clk 0:00:45.8]} 37. Rxc5 {[%clk 0:00:38.4]} 37... Kd6 {[%clk
0:00:46]} 38. Rxa5 {[%clk 0:00:38.4]} 38... Rg8 {[%clk 0:00:45.5]} 39. Ra6+
{[%clk 0:00:37.3]} 39... Kd7 {[%clk 0:00:44]} 40. Be3 {[%clk 0:00:32]} 40... Rg3
{[%clk 0:00:36.6]} 41. Bd4 {[%clk 0:00:25.8]} 41... Bxd4 {[%clk 0:00:36.5]} 42.
cxd4 {[%clk 0:00:25.8]} 42... Rxd3 {[%clk 0:00:37]} 43. Ra4 {[%clk 0:00:25.4]}
43... Kc6 {[%clk 0:00:36.1]} 44. a3 {[%clk 0:00:25.1]} 44... Rh3 {[%clk
0:00:34.3]} 45. Rb4 {[%clk 0:00:25]} 45... Rh2 {[%clk 0:00:32.1]} 46. Kb1 {[%clk
0:00:24.7]} 46... Rd2 {[%clk 0:00:31.4]} 47. Ka2 {[%clk 0:00:24.2]} 47... Rc2
{[%clk 0:00:31.6]} 48. a4 {[%clk 0:00:23.9]} 48... Rh2 {[%clk 0:00:31.2]} 49.
Ka3 {[%clk 0:00:23.1]} 49... Rh8 {[%clk 0:00:31.5]} 50. a5 {[%clk 0:00:22.9]}
50... Ra8 {[%clk 0:00:29.6]} 51. Ka4 {[%clk 0:00:23]} 51... Ra7 {[%clk
0:00:29.4]} 52. Rb6+ {[%clk 0:00:22.8]} 52... Kc7 {[%clk 0:00:28.8]} 53. Rh6
{[%clk 0:00:23.3]} 53... Ra8 {[%clk 0:00:26.6]} 54. b4 {[%clk 0:00:22.2]} 54...
Kd7 {[%clk 0:00:26]} 55. b5 {[%clk 0:00:21.6]} 55... Rc8 {[%clk 0:00:26.1]} 56.
Rh7+ {[%clk 0:00:18]} 56... Kd6 {[%clk 0:00:25.7]} 57. a6 {[%clk 0:00:18.4]}
57... Rc4+ {[%clk 0:00:25.2]} 58. Ka5 {[%clk 0:00:18.8]} 58... Rxd4 {[%clk
0:00:25.2]} 59. a7 {[%clk 0:00:18]} 59... Rd1 {[%clk 0:00:25.7]} 60. b6 {[%clk
0:00:18.4]} 60... Ra1+ {[%clk 0:00:25.6]} 61. Kb5 {[%clk 0:00:18.5]} 61... Rb1+
{[%clk 0:00:25.8]} 62. Ka6 {[%clk 0:00:18.1]} 62... Ra1+ {[%clk 0:00:23.6]} 63.
Kb7 {[%clk 0:00:17.5]} 63... d4 {[%clk 0:00:23.8]} 64. a8=Q {[%clk 0:00:14.9]}
64... Rxa8 {[%clk 0:00:24.3]} 65. Kxa8 {[%clk 0:00:15]} 65... d3 {[%clk
0:00:25.2]} 66. b7 {[%clk 0:00:15.3]} 66... d2 {[%clk 0:00:25.7]} 67. b8=Q+
{[%clk 0:00:15.4]} 67... Ke6 {[%clk 0:00:25.5]} 68. Qe8+ {[%clk 0:00:15.1]}
68... Kf5 {[%clk 0:00:25.2]} 69. Rf7+ {[%clk 0:00:14.1]} 1-0

[Event "*** SCC Grand Prix: Titled Tuesday Blitz"]
[Site "Chess.com"]
[Date "2020.07.07"]
[Round "6"]
[White "nocnypako"]
[Black "XDPS"]
[Result "0-1"]
[WhiteElo "2582"]
[BlackElo "2723"]
[TimeControl "180+1"]
[EndTime "11:07:37 PDT"]
[Termination "XDPS won on time"]

1. d4 {[%clk 0:03:00.9]} 1... d5 {[%clk 0:02:58.5]} 2. c4 {[%clk 0:03:01.1]}
2... c6 {[%clk 0:02:57.9]} 3. Nf3 {[%clk 0:02:59.5]} 3... Nf6 {[%clk 0:02:57.5]}
4. Nc3 {[%clk 0:02:59.4]} 4... e6 {[%clk 0:02:57.4]} 5. Bg5 {[%clk 0:02:58.7]}
5... Nbd7 {[%clk 0:02:57.3]} 6. e3 {[%clk 0:02:58]} 6... Qa5 {[%clk 0:02:56.6]}
7. cxd5 {[%clk 0:02:57.7]} 7... Nxd5 {[%clk 0:02:55.9]} 8. Qd2 {[%clk
0:02:57.8]} 8... Bb4 {[%clk 0:02:39.9]} 9. Rc1 {[%clk 0:02:55.6]} 9... b6 {[%clk
0:02:39.5]} 10. Bd3 {[%clk 0:01:49.3]} 10... Nxc3 {[%clk 0:02:27.8]} 11. bxc3
{[%clk 0:01:49.1]} 11... Ba3 {[%clk 0:02:28.2]} 12. Rd1 {[%clk 0:01:40.8]} 12...
h6 {[%clk 0:02:25.1]} 13. Bh4 {[%clk 0:01:39.7]} 13... Ba6 {[%clk 0:02:23.2]}
14. O-O {[%clk 0:01:36.2]} 14... O-O {[%clk 0:02:22.3]} 15. e4 {[%clk
0:01:10.2]} 15... Rfe8 {[%clk 0:02:19.3]} 16. Bxa6 {[%clk 0:00:56.9]} 16... Qxa6
{[%clk 0:02:15.8]} 17. Qe3 {[%clk 0:00:55.6]} 17... Rac8 {[%clk 0:02:13.2]} 18.
Rfe1 {[%clk 0:00:46.6]} 18... Qa4 {[%clk 0:02:11.4]} 19. Nd2 {[%clk 0:00:41.7]}
19... c5 {[%clk 0:02:07.2]} 20. Nb1 {[%clk 0:00:29.3]} 20... Nf8 {[%clk
0:01:43.6]} 21. d5 {[%clk 0:00:18.4]} 21... exd5 {[%clk 0:01:38.5]} 22. Rxd5
{[%clk 0:00:19.3]} 22... c4 {[%clk 0:01:24.1]} 23. Qd2 {[%clk 0:00:16.4]} 23...
Bc5 {[%clk 0:01:19.2]} 24. Kh1 {[%clk 0:00:14]} 24... Qc6 {[%clk 0:01:11.1]} 25.
f4 {[%clk 0:00:12.1]} 25... Ng6 {[%clk 0:00:47.8]} 26. Bg3 {[%clk 0:00:09.5]}
26... Ne7 {[%clk 0:00:47.4]} 27. Re5 {[%clk 0:00:05.2]} 27... Rcd8 {[%clk
0:00:42.1]} 28. Qe2 {[%clk 0:00:04.5]} 28... b5 {[%clk 0:00:42.2]} 29. h3 {[%clk
0:00:04]} 29... a6 {[%clk 0:00:37.8]} 30. a4 {[%clk 0:00:03.9]} 30... Bd6 {[%clk
0:00:29.6]} 31. axb5 {[%clk 0:00:04.2]} 31... axb5 {[%clk 0:00:29.6]} 32. Rh5
{[%clk 0:00:04.9]} 32... Ng6 {[%clk 0:00:20.3]} 33. Qf3 {[%clk 0:00:04.2]} 33...
Bc7 {[%clk 0:00:18.6]} 34. Rd5 {[%clk 0:00:03.8]} 34... Rxd5 {[%clk 0:00:17.7]}
35. exd5 {[%clk 0:00:04.7]} 35... Rxe1+ {[%clk 0:00:18.2]} 36. Bxe1 {[%clk
0:00:05.4]} 36... Qd6 {[%clk 0:00:18.8]} 37. Bg3 {[%clk 0:00:05.5]} 37... Nxf4
{[%clk 0:00:18.4]} 38. Nd2 {[%clk 0:00:04.8]} 38... Qxd5 {[%clk 0:00:17.6]} 39.
Qxd5 {[%clk 0:00:03.9]} 39... Nxd5 {[%clk 0:00:17.5]} 40. Bxc7 {[%clk
0:00:04.1]} 40... Nxc7 {[%clk 0:00:18.4]} 41. Ne4 {[%clk 0:00:03.9]} 41... Nd5
{[%clk 0:00:18.6]} 42. Kg1 {[%clk 0:00:03.8]} 42... g6 {[%clk 0:00:18.9]} 43. g4
{[%clk 0:00:03]} 43... f5 {[%clk 0:00:18.3]} 44. gxf5 {[%clk 0:00:03.9]} 44...
gxf5 {[%clk 0:00:19.2]} 45. Nd6 {[%clk 0:00:04.2]} 45... Nxc3 {[%clk 0:00:19.7]}
46. Nxf5 {[%clk 0:00:04.4]} 46... Kh7 {[%clk 0:00:20.2]} 47. Nd6 {[%clk
0:00:04.3]} 47... Kg6 {[%clk 0:00:19.5]} 48. Kf2 {[%clk 0:00:04.9]} 48... Kf6
{[%clk 0:00:19.5]} 49. Ke3 {[%clk 0:00:05.6]} 49... Ke6 {[%clk 0:00:18.7]} 50.
Nc8 {[%clk 0:00:05.7]} 50... Nd5+ {[%clk 0:00:18.7]} 51. Kd4 {[%clk 0:00:05.8]}
51... c3 {[%clk 0:00:19.4]} 52. Kd3 {[%clk 0:00:05.2]} 52... b4 {[%clk
0:00:19.7]} 53. Na7 {[%clk 0:00:05.4]} 53... b3 {[%clk 0:00:18.9]} 54. Nc6
{[%clk 0:00:04.9]} 54... b2 {[%clk 0:00:14.6]} 55. Kc2 {[%clk 0:00:04.6]} 55...
Kf5 {[%clk 0:00:14]} 56. Nd4+ {[%clk 0:00:04.8]} 56... Kf4 {[%clk 0:00:14]} 57.
Ne2+ {[%clk 0:00:04.9]} 57... Kf3 {[%clk 0:00:13]} 58. Nd4+ {[%clk 0:00:05.2]}
58... Kg3 {[%clk 0:00:13]} 59. Nf5+ {[%clk 0:00:05.6]} 59... Kxh3 {[%clk
0:00:13]} 60. Nxh6 {[%clk 0:00:06.3]} 60... Ne3+ {[%clk 0:00:08.4]} 61. Kb1
{[%clk 0:00:05.5]} 61... Nc4 {[%clk 0:00:09.3]} 62. Nf5 {[%clk 0:00:03.2]} 62...
Nd2+ {[%clk 0:00:10.2]} 63. Kc2 {[%clk 0:00:03.2]} 63... b1=Q+ {[%clk
0:00:11.1]} 64. Kxc3 {[%clk 0:00:03.6]} 64... Qxf5 {[%clk 0:00:11.9]} 0-1

[Event "*** SCC Grand Prix: Titled Tuesday Blitz"]
[Site "Chess.com"]
[Date "2020.07.07"]
[Round "6"]
[White "IwkooO"]
[Black "Budisavljevic"]
[Result "1-0"]
[WhiteElo "2581"]
[BlackElo "2404"]
[TimeControl "180+1"]
[EndTime "11:07:38 PDT"]
[Termination "IwkooO won by resignation"]

1. e4 {[%clk 0:03:00.9]} 1... c5 {[%clk 0:02:59.7]} 2. Nf3 {[%clk 0:03:00.9]}
2... e6 {[%clk 0:03:00.3]} 3. d4 {[%clk 0:03:01.5]} 3... cxd4 {[%clk 0:03:01]}
4. Nxd4 {[%clk 0:03:02.4]} 4... a6 {[%clk 0:03:01.5]} 5. c4 {[%clk 0:03:02.6]}
5... Nf6 {[%clk 0:03:01.1]} 6. Nc3 {[%clk 0:03:03]} 6... Qc7 {[%clk 0:03:01.8]}
7. Be2 {[%clk 0:03:03.1]} 7... b6 {[%clk 0:03:02.3]} 8. O-O {[%clk 0:03:03.3]}
8... Bb7 {[%clk 0:03:02.9]} 9. Qd3 {[%clk 0:03:03.9]} 9... Nc6 {[%clk
0:03:00.9]} 10. Nxc6 {[%clk 0:02:59]} 10... Bxc6 {[%clk 0:02:59.4]} 11. Be3
{[%clk 0:02:52.7]} 11... Be7 {[%clk 0:02:56]} 12. Rac1 {[%clk 0:02:50.3]} 12...
Bb7 {[%clk 0:02:56]} 13. f4 {[%clk 0:02:23.6]} 13... d6 {[%clk 0:02:53.3]} 14.
Bf3 {[%clk 0:02:24]} 14... O-O {[%clk 0:02:47.6]} 15. b3 {[%clk 0:02:19.9]}
15... Nd7 {[%clk 0:02:46.1]} 16. Kh1 {[%clk 0:02:18.3]} 16... Rad8 {[%clk
0:02:40.7]} 17. f5 {[%clk 0:02:17.9]} 17... Ne5 {[%clk 0:02:39.7]} 18. Qe2
{[%clk 0:02:15.8]} 18... Bf6 {[%clk 0:02:36.1]} 19. Na4 {[%clk 0:01:57.9]} 19...
Nd7 {[%clk 0:02:30.1]} 20. fxe6 {[%clk 0:01:54.5]} 20... fxe6 {[%clk 0:02:31]}
21. Bg4 {[%clk 0:01:55.1]} 21... Rde8 {[%clk 0:02:22.2]} 22. Bg1 {[%clk
0:01:33.6]} 22... Bc6 {[%clk 0:02:15.6]} 23. Nc3 {[%clk 0:01:33.1]} 23... Qd8
{[%clk 0:01:57.2]} 24. Qd2 {[%clk 0:01:18]} 24... Qe7 {[%clk 0:01:39.8]} 25. Na4
{[%clk 0:01:06.8]} 25... Bg5 {[%clk 0:01:25.1]} 26. Be3 {[%clk 0:01:03.5]} 26...
Bxe3 {[%clk 0:01:05.3]} 27. Qxe3 {[%clk 0:01:04.4]} 27... Ne5 {[%clk 0:01:01.5]}
28. Be2 {[%clk 0:00:58.4]} 28... Bxa4 {[%clk 0:00:58.8]} 29. bxa4 {[%clk
0:00:57.9]} 29... Qc7 {[%clk 0:00:55.8]} 30. Qd4 {[%clk 0:00:50.4]} 30... Qc5
{[%clk 0:00:52.5]} 31. Qxc5 {[%clk 0:00:50.3]} 31... Rxf1+ {[%clk 0:00:47.7]}
32. Bxf1 {[%clk 0:00:49.3]} 32... bxc5 {[%clk 0:00:46.4]} 33. Rb1 {[%clk
0:00:49.6]} 33... Rf8 {[%clk 0:00:39.9]} 34. Kg1 {[%clk 0:00:49.1]} 34... Rf4
{[%clk 0:00:36.4]} 35. Rb6 {[%clk 0:00:48.7]} 35... Rxe4 {[%clk 0:00:31.9]} 36.
Rxd6 {[%clk 0:00:48.2]} 36... Kf7 {[%clk 0:00:17.9]} 37. Rxa6 {[%clk 0:00:47.5]}
37... Nxc4 {[%clk 0:00:10.2]} 38. Ra7+ {[%clk 0:00:40.9]} 38... Kf6 {[%clk
0:00:09.9]} 39. a5 {[%clk 0:00:40.2]} 39... Nd2 {[%clk 0:00:04.1]} 40. Bb5
{[%clk 0:00:39.8]} 40... Re1+ {[%clk 0:00:03.1]} 41. Kf2 {[%clk 0:00:39.5]}
41... Rb1 {[%clk 0:00:03.8]} 42. a4 {[%clk 0:00:39.7]} 42... Ne4+ {[%clk
0:00:03.5]} 43. Ke3 {[%clk 0:00:39.6]} 43... Nc3 {[%clk 0:00:04.1]} 44. Bd3
{[%clk 0:00:37]} 44... Ra1 {[%clk 0:00:04.4]} 45. a6 {[%clk 0:00:37]} 45... Nd5+
{[%clk 0:00:05]} 46. Kd2 {[%clk 0:00:35.8]} 46... Ra2+ {[%clk 0:00:05.5]} 47.
Kc1 {[%clk 0:00:35]} 47... Rxa4 {[%clk 0:00:06]} 48. Rb7 {[%clk 0:00:34]} 48...
Ra3 {[%clk 0:00:06.1]} 49. Bb5 {[%clk 0:00:31.9]} 49... Nc3 {[%clk 0:00:05.7]}
50. Bc4 {[%clk 0:00:29.3]} 50... Nd5 {[%clk 0:00:03.7]} 51. a7 {[%clk 0:00:27]}
51... Ra4 {[%clk 0:00:03.8]} 52. Bb5 {[%clk 0:00:25.1]} 52... Ra5 {[%clk
0:00:03.7]} 53. Bc6 {[%clk 0:00:25.5]} 53... Ke5 {[%clk 0:00:02.5]} 54. Rxg7
{[%clk 0:00:20.5]} 54... Nb6 {[%clk 0:00:02.9]} 55. Rb7 {[%clk 0:00:20.6]} 55...
Nc4 {[%clk 0:00:02.1]} 56. Rxh7 {[%clk 0:00:20.5]} 56... Nb6 {[%clk 0:00:01.6]}
57. Rb7 {[%clk 0:00:20.8]} 57... Nc4 {[%clk 0:00:02]} 58. h4 {[%clk 0:00:21.3]}
58... Kd4 {[%clk 0:00:02.2]} 59. Rd7+ {[%clk 0:00:20.8]} 59... Kc3 {[%clk
0:00:02.3]} 60. a8=Q {[%clk 0:00:21.3]} 60... Rxa8 {[%clk 0:00:02]} 61. Bxa8
{[%clk 0:00:22.2]} 61... Nb6 {[%clk 0:00:02.6]} 62. Rd8 {[%clk 0:00:21.9]} 62...
c4 {[%clk 0:00:02.4]} 63. h5 {[%clk 0:00:21.9]} 63... Kb3 {[%clk 0:00:01.8]} 64.
h6 {[%clk 0:00:21.9]} 64... c3 {[%clk 0:00:02.3]} 65. h7 {[%clk 0:00:22.2]}
65... Nc4 {[%clk 0:00:03.2]} 66. h8=Q {[%clk 0:00:22.2]} 66... Nb2 {[%clk
0:00:04.1]} 67. Rb8+ {[%clk 0:00:21.7]} 1-0